Workbook

Sheet Aktien & Wertpapiere
B2: HINWEISE (siehe Notiz / Kommentar) | E2: https://query1.finance.yahoo.com/v7/finance/quote?symbols=
B4: Name | C4: Symbol | D4: Kurs | E4: Vortag | F4: Änderung | G4: Änderung % | H4: Kursdatum | I4: Kurszeit | J4: Umsatz (Stück) | K4: Kaufkurs | L4: Stück | M4: Wert | N4: Investition | O4: Gew./Verl. | P4: Gew./Verl. % | Q4: Netto | R4: Rendite
B5: BASF | C5: BAS.F | D5: =VALUE(SUBSTITUTE(MID(_xlfn.WEBSERVICE(Adresse&$C5),SEARCH("regularMarketPrice",_xlfn.WEBSERVICE(Adresse&$C5))+20,SEARCH(",",MID(_xlfn.WEBSERVICE(Adresse&$C5),SEARCH("regularMarketPrice",_xlfn.WEBSERVICE(Adresse&$C5))+20,18))-1),".",",")) -> 52.78 | E5: =VALUE(SUBSTITUTE(MID(_xlfn.WEBSERVICE(Adresse&$C5),SEARCH("regularMarketPreviousClose",_xlfn.WEBSERVICE(Adresse&$C5))+28,SEARCH(",",MID(_xlfn.WEBSERVICE(Adresse&$C5),SEARCH("regularMarketPreviousClose",_xlfn.WEBSERVICE(Adresse&$C5))+28,18))-1),".",",")) -> 53.19 | F5: =VALUE(SUBSTITUTE(MID(_xlfn.WEBSERVICE(Adresse&$C5),SEARCH("regularMarketChange"":",_xlfn.WEBSERVICE(Adresse&$C5))+21,SEARCH(",",MID(_xlfn.WEBSERVICE(Adresse&$C5),SEARCH("regularMarketChange"":",_xlfn.WEBSERVICE(Adresse&$C5))+21,18))-1),".",",")) -> -0.40999985 | G5: =VALUE(SUBSTITUTE(MID(_xlfn.WEBSERVICE(Adresse&$C5),SEARCH("regularMarketChangePercent",_xlfn.WEBSERVICE(Adresse&$C5))+28,SEARCH(",",MID(_xlfn.WEBSERVICE(Adresse&$C5),SEARCH("regularMarketChangePercent",_xlfn.WEBSERVICE(Adresse&$C5))+28,18))-1),".",","))/100 -> -0.0077082133 | H5: =(VALUE(MID(_xlfn.WEBSERVICE(Adresse&$C5),SEARCH("regularMarketTime",_xlfn.WEBSERVICE(Adresse&$C5))+19,SEARCH(",",MID(_xlfn.WEBSERVICE(Adresse&$C5),SEARCH("regularMarketTime",_xlfn.WEBSERVICE(Adresse&$C5))+19,18))-1))+7200) / 86400 + 25569 -> 44939.95686 | I5: 44939.95686 | J5: =VALUE(MID(_xlfn.WEBSERVICE(Adresse&$C5),SEARCH("regularMarketVolume",_xlfn.WEBSERVICE(Adresse&$C5))+21,SEARCH(",",MID(_xlfn.WEBSERVICE(Adresse&$C5),SEARCH("regularMarketVolume",_xlfn.WEBSERVICE(Adresse&$C5))+21,18))-1)) -> 10868 | K5: 50 | L5: 100 | M5: =L5*D5 -> 5278 | N5: =K5*L5 -> 5000 | O5: =M5-N5 -> 278 | P5: =O5/N5 -> 0.0556 | Q5: =Tabelle1[[#This Row],[Investition]]+(Tabelle1[[#This Row],[Gew./Verl.]]*0.75) -> 5208.5 | R5: =Renditen!B1 -> 0.03201766908
B6: SAP | C6: SAP.DU | D6: =VALUE(SUBSTITUTE(MID(_xlfn.WEBSERVICE(Adresse&$C6),SEARCH("regularMarketPrice",_xlfn.WEBSERVICE(Adresse&$C6))+20,SEARCH(",",MID(_xlfn.WEBSERVICE(Adresse&$C6),SEARCH("regularMarketPrice",_xlfn.WEBSERVICE(Adresse&$C6))+20,18))-1),".",",")) -> 107.7 | E6: =VALUE(SUBSTITUTE(MID(_xlfn.WEBSERVICE(Adresse&$C6),SEARCH("regularMarketPreviousClose",_xlfn.WEBSERVICE(Adresse&$C6))+28,SEARCH(",",MID(_xlfn.WEBSERVICE(Adresse&$C6),SEARCH("regularMarketPreviousClose",_xlfn.WEBSERVICE(Adresse&$C6))+28,18))-1),".",",")) -> 106.76 | F6: =VALUE(SUBSTITUTE(MID(_xlfn.WEBSERVICE(Adresse&$C6),SEARCH("regularMarketChange"":",_xlfn.WEBSERVICE(Adresse&$C6))+21,SEARCH(",",MID(_xlfn.WEBSERVICE(Adresse&$C6),SEARCH("regularMarketChange"":",_xlfn.WEBSERVICE(Adresse&$C6))+21,18))-1),".",",")) -> 0.9399948 | G6: =VALUE(SUBSTITUTE(MID(_xlfn.WEBSERVICE(Adresse&$C6),SEARCH("regularMarketChangePercent",_xlfn.WEBSERVICE(Adresse&$C6))+28,SEARCH(",",MID(_xlfn.WEBSERVICE(Adresse&$C6),SEARCH("regularMarketChangePercent",_xlfn.WEBSERVICE(Adresse&$C6))+28,18))-1),".",","))/100 -> 0.008804747 | H6: 44939.52266 | I6: 44939.52266 | J6: =VALUE(MID(_xlfn.WEBSERVICE(Adresse&$C6),SEARCH("regularMarketVolume",_xlfn.WEBSERVICE(Adresse&$C6))+21,SEARCH(",",MID(_xlfn.WEBSERVICE(Adresse&$C6),SEARCH("regularMarketVolume",_xlfn.WEBSERVICE(Adresse&$C6))+21,18))-1)) -> 96 | K6: 100 | L6: 50 | M6: 5385 | N6: 5000 | O6: 385 | P6: 0.077 | Q6: =Tabelle1[[#This Row],[Investition]]+(Tabelle1[[#This Row],[Gew./Verl.]]*0.75) -> 5288.75 | R6: =Renditen!E1 -> 
B7: ARERO - Der Weltfonds | C7: HVJD.DU | D7: =VALUE(SUBSTITUTE(MID(_xlfn.WEBSERVICE(Adresse&$C7),SEARCH("regularMarketPrice",_xlfn.WEBSERVICE(Adresse&$C7))+20,SEARCH(",",MID(_xlfn.WEBSERVICE(Adresse&$C7),SEARCH("regularMarketPrice",_xlfn.WEBSERVICE(Adresse&$C7))+20,18))-1),".",",")) -> 241.293 | E7: =VALUE(SUBSTITUTE(MID(_xlfn.WEBSERVICE(Adresse&$C7),SEARCH("regularMarketPreviousClose",_xlfn.WEBSERVICE(Adresse&$C7))+28,SEARCH(",",MID(_xlfn.WEBSERVICE(Adresse&$C7),SEARCH("regularMarketPreviousClose",_xlfn.WEBSERVICE(Adresse&$C7))+28,18))-1),".",",")) -> 241.791 | F7: =VALUE(SUBSTITUTE(MID(_xlfn.WEBSERVICE(Adresse&$C7),SEARCH("regularMarketChange"":",_xlfn.WEBSERVICE(Adresse&$C7))+21,SEARCH(",",MID(_xlfn.WEBSERVICE(Adresse&$C7),SEARCH("regularMarketChange"":",_xlfn.WEBSERVICE(Adresse&$C7))+21,18))-1),".",",")) -> -0.4980011 | G7: =VALUE(SUBSTITUTE(MID(_xlfn.WEBSERVICE(Adresse&$C7),SEARCH("regularMarketChangePercent",_xlfn.WEBSERVICE(Adresse&$C7))+28,SEARCH(",",MID(_xlfn.WEBSERVICE(Adresse&$C7),SEARCH("regularMarketChangePercent",_xlfn.WEBSERVICE(Adresse&$C7))+28,18))-1),".",","))/100 -> -0.0020596345 | H7: 44939.94872 | I7: 44939.94872 | J7: =VALUE(MID(_xlfn.WEBSERVICE(Adresse&$C7),SEARCH("regularMarketVolume",_xlfn.WEBSERVICE(Adresse&$C7))+21,SEARCH(",",MID(_xlfn.WEBSERVICE(Adresse&$C7),SEARCH("regularMarketVolume",_xlfn.WEBSERVICE(Adresse&$C7))+21,18))-1)) -> 9 | K7: 200 | L7: 20 | M7: =L7*D7 -> 4825.86 | N7: =K7*L7 -> 4000 | O7: =M7-N7 -> 825.86 | P7: =O7/N7 -> 0.206465 | Q7: =Tabelle1[[#This Row],[Investition]]+(Tabelle1[[#This Row],[Gew./Verl.]]*0.75) -> 4619.395 | R7: =Renditen!H1 -> 
B8: Cisco | C8: CIS.DE | D8: =VALUE(SUBSTITUTE(MID(_xlfn.WEBSERVICE(Adresse&$C8),SEARCH("regularMarketPrice",_xlfn.WEBSERVICE(Adresse&$C8))+20,SEARCH(",",MID(_xlfn.WEBSERVICE(Adresse&$C8),SEARCH("regularMarketPrice",_xlfn.WEBSERVICE(Adresse&$C8))+20,18))-1),".",",")) -> 45.11 | E8: =VALUE(SUBSTITUTE(MID(_xlfn.WEBSERVICE(Adresse&$C8),SEARCH("regularMarketPreviousClose",_xlfn.WEBSERVICE(Adresse&$C8))+28,SEARCH(",",MID(_xlfn.WEBSERVICE(Adresse&$C8),SEARCH("regularMarketPreviousClose",_xlfn.WEBSERVICE(Adresse&$C8))+28,18))-1),".",",")) -> 45.44 | F8: =VALUE(SUBSTITUTE(MID(_xlfn.WEBSERVICE(Adresse&$C8),SEARCH("regularMarketChange"":",_xlfn.WEBSERVICE(Adresse&$C8))+21,SEARCH(",",MID(_xlfn.WEBSERVICE(Adresse&$C8),SEARCH("regularMarketChange"":",_xlfn.WEBSERVICE(Adresse&$C8))+21,18))-1),".",",")) -> -0.32999802 | G8: =VALUE(SUBSTITUTE(MID(_xlfn.WEBSERVICE(Adresse&$C8),SEARCH("regularMarketChangePercent",_xlfn.WEBSERVICE(Adresse&$C8))+28,SEARCH(",",MID(_xlfn.WEBSERVICE(Adresse&$C8),SEARCH("regularMarketChangePercent",_xlfn.WEBSERVICE(Adresse&$C8))+28,18))-1),".",","))/100 -> -0.0072622806 | H8: =(VALUE(MID(_xlfn.WEBSERVICE(Adresse&$C8),SEARCH("regularMarketTime",_xlfn.WEBSERVICE(Adresse&$C8))+19,SEARCH(",",MID(_xlfn.WEBSERVICE(Adresse&$C8),SEARCH("regularMarketTime",_xlfn.WEBSERVICE(Adresse&$C8))+19,18))-1))+7200) / 86400 + 25569 -> 44939.77485 | I8: 44939.77485 | J8: =VALUE(MID(_xlfn.WEBSERVICE(Adresse&$C8),SEARCH("regularMarketVolume",_xlfn.WEBSERVICE(Adresse&$C8))+21,SEARCH(",",MID(_xlfn.WEBSERVICE(Adresse&$C8),SEARCH("regularMarketVolume",_xlfn.WEBSERVICE(Adresse&$C8))+21,18))-1)) -> 7185 | K8: 50 | L8: 100 | M8: =L8*D8 -> 4511 | N8: =K8*L8 -> 5000 | O8: =M8-N8 -> -489 | P8: =O8/N8 -> -0.0978 | Q8: =Tabelle1[[#This Row],[Investition]]+(Tabelle1[[#This Row],[Gew./Verl.]]*0.75) -> 4633.25
B9: Allianz | C9: ALV.DE | D9: 217.75 | E9: 217.7 | F9: 0.05000305 | G9: 0.00022968788 | H9: 44939.78103 | I9: 44939.78103 | J9: 1076232 | M9: 0 | N9: 0 | O9: 0 | Q9: =Tabelle1[[#This Row],[Investition]]+(Tabelle1[[#This Row],[Gew./Verl.]]*0.75) -> 0
B10: McDonalds | C10: MDO.DE | D10: 247.1 | E10: 247.2 | F10: -0.099990845 | G10: -0.0004044937 | H10: 44939.77494 | I10: 44939.77494 | J10: 2441 | M10: 0 | N10: 0 | O10: 0 | Q10: =Tabelle1[[#This Row],[Investition]]+(Tabelle1[[#This Row],[Gew./Verl.]]*0.75) -> 0
B11: Apple | C11: APC.DE | D11: 123.04 | E11: 122.34 | F11: 0.7000046 | G11: 0.005721797 | H11: 44939.7748 | I11: 44939.7748 | J11: 72232 | M11: 0 | N11: 0 | O11: 0 | Q11: =Tabelle1[[#This Row],[Investition]]+(Tabelle1[[#This Row],[Gew./Verl.]]*0.75) -> 0
B12: Vonovia | C12: VNA.DE | D12: 27.05 | E12: 27.1 | F12: -0.050001144 | G12: -0.0018450606 | H12: 44939.77448 | I12: 44939.77448 | J12: 2398044 | M12: 0 | N12: 0 | O12: 0 | Q12: =Tabelle1[[#This Row],[Investition]]+(Tabelle1[[#This Row],[Gew./Verl.]]*0.75) -> 0
B13: Munich RE | C13: MUV2.DE | D13: 323.7 | E13: 323.5 | F13: 0.2000122 | G13: 0.00061827578 | H13: 44939.77449 | I13: 44939.77449 | J13: 277169 | M13: 0 | N13: 0 | O13: 0 | Q13: =Tabelle1[[#This Row],[Investition]]+(Tabelle1[[#This Row],[Gew./Verl.]]*0.75) -> 0
B14: BHP | C14: BHP1.F | D14: 31.845 | E14: 31.64 | F14: 0.20499992 | G14: 0.006479138 | H14: 44939.76234 | I14: 44939.76234 | J14: 1847 | M14: 0 | N14: 0 | O14: 0 | Q14: =Tabelle1[[#This Row],[Investition]]+(Tabelle1[[#This Row],[Gew./Verl.]]*0.75) -> 0
B15: Alphabet (ehemals Google) | C15: ABEC.DE | D15: 84.58 | E15: 84.85 | F15: -0.26999664 | G15: -0.0031820467 | H15: 44939.77469 | I15: 44939.77469 | J15: 5013 | M15: 0 | N15: 0 | O15: 0 | Q15: =Tabelle1[[#This Row],[Investition]]+(Tabelle1[[#This Row],[Gew./Verl.]]*0.75) -> 0
B16: Siemens Healthineers | C16: SHL.DE | D16: 49.82 | E16: 49.04 | F16: 0.7799988 | G16: 0.015905358 | H16: 44939.77664 | I16: 44939.77664 | J16: 585370 | M16: 0 | N16: 0 | O16: 0 | Q16: =Tabelle1[[#This Row],[Investition]]+(Tabelle1[[#This Row],[Gew./Verl.]]*0.75) -> 0
B17: Caterpillar | C17: CAT1.F | D17: =VALUE(SUBSTITUTE(MID(_xlfn.WEBSERVICE(Adresse&$C17),SEARCH("regularMarketPrice",_xlfn.WEBSERVICE(Adresse&$C17))+20,SEARCH(",",MID(_xlfn.WEBSERVICE(Adresse&$C17),SEARCH("regularMarketPrice",_xlfn.WEBSERVICE(Adresse&$C17))+20,18))-1),".",",")) -> 236 | E17: =VALUE(SUBSTITUTE(MID(_xlfn.WEBSERVICE(Adresse&$C17),SEARCH("regularMarketPreviousClose",_xlfn.WEBSERVICE(Adresse&$C17))+28,SEARCH(",",MID(_xlfn.WEBSERVICE(Adresse&$C17),SEARCH("regularMarketPreviousClose",_xlfn.WEBSERVICE(Adresse&$C17))+28,18))-1),".",",")) -> 237 | F17: =VALUE(SUBSTITUTE(MID(_xlfn.WEBSERVICE(Adresse&$C17),SEARCH("regularMarketChange"":",_xlfn.WEBSERVICE(Adresse&$C17))+21,SEARCH(",",MID(_xlfn.WEBSERVICE(Adresse&$C17),SEARCH("regularMarketChange"":",_xlfn.WEBSERVICE(Adresse&$C17))+21,18))-1),".",",")) -> -1 | G17: =VALUE(SUBSTITUTE(MID(_xlfn.WEBSERVICE(Adresse&$C17),SEARCH("regularMarketChangePercent",_xlfn.WEBSERVICE(Adresse&$C17))+28,SEARCH(",",MID(_xlfn.WEBSERVICE(Adresse&$C17),SEARCH("regularMarketChangePercent",_xlfn.WEBSERVICE(Adresse&$C17))+28,18))-1),".",","))/100 -> -0.0042194092 | H17: =(VALUE(MID(_xlfn.WEBSERVICE(Adresse&$C17),SEARCH("regularMarketTime",_xlfn.WEBSERVICE(Adresse&$C17))+19,SEARCH(",",MID(_xlfn.WEBSERVICE(Adresse&$C17),SEARCH("regularMarketTime",_xlfn.WEBSERVICE(Adresse&$C17))+19,18))-1))+7200) / 86400 + 25569 -> 44939.71679 | I17: 44939.71679 | J17: =VALUE(MID(_xlfn.WEBSERVICE(Adresse&$C17),SEARCH("regularMarketVolume",_xlfn.WEBSERVICE(Adresse&$C17))+21,SEARCH(",",MID(_xlfn.WEBSERVICE(Adresse&$C17),SEARCH("regularMarketVolume",_xlfn.WEBSERVICE(Adresse&$C17))+21,18))-1)) -> 796 | M17: =L17*D17 -> 0 | N17: =K17*L17 -> 0 | O17: =M17-N17 -> 0 | P17: =O17/N17 ->  | Q17: =Tabelle1[[#This Row],[Investition]]+(Tabelle1[[#This Row],[Gew./Verl.]]*0.75) -> 0
B18: Rheinmetall | C18: RHM.DE | D18: =VALUE(SUBSTITUTE(MID(_xlfn.WEBSERVICE(Adresse&$C18),SEARCH("regularMarketPrice",_xlfn.WEBSERVICE(Adresse&$C18))+20,SEARCH(",",MID(_xlfn.WEBSERVICE(Adresse&$C18),SEARCH("regularMarketPrice",_xlfn.WEBSERVICE(Adresse&$C18))+20,18))-1),".",",")) -> 210.1 | E18: =VALUE(SUBSTITUTE(MID(_xlfn.WEBSERVICE(Adresse&$C18),SEARCH("regularMarketPreviousClose",_xlfn.WEBSERVICE(Adresse&$C18))+28,SEARCH(",",MID(_xlfn.WEBSERVICE(Adresse&$C18),SEARCH("regularMarketPreviousClose",_xlfn.WEBSERVICE(Adresse&$C18))+28,18))-1),".",",")) -> 213 | F18: =VALUE(SUBSTITUTE(MID(_xlfn.WEBSERVICE(Adresse&$C18),SEARCH("regularMarketChange"":",_xlfn.WEBSERVICE(Adresse&$C18))+21,SEARCH(",",MID(_xlfn.WEBSERVICE(Adresse&$C18),SEARCH("regularMarketChange"":",_xlfn.WEBSERVICE(Adresse&$C18))+21,18))-1),".",",")) -> -2.899994 | G18: =VALUE(SUBSTITUTE(MID(_xlfn.WEBSERVICE(Adresse&$C18),SEARCH("regularMarketChangePercent",_xlfn.WEBSERVICE(Adresse&$C18))+28,SEARCH(",",MID(_xlfn.WEBSERVICE(Adresse&$C18),SEARCH("regularMarketChangePercent",_xlfn.WEBSERVICE(Adresse&$C18))+28,18))-1),".",","))/100 -> -0.013614994 | H18: 44939.77455 | I18: 44939.77455 | J18: =VALUE(MID(_xlfn.WEBSERVICE(Adresse&$C18),SEARCH("regularMarketVolume",_xlfn.WEBSERVICE(Adresse&$C18))+21,SEARCH(",",MID(_xlfn.WEBSERVICE(Adresse&$C18),SEARCH("regularMarketVolume",_xlfn.WEBSERVICE(Adresse&$C18))+21,18))-1)) -> 177793 | M18: =L18*D18 -> 0 | N18: =K18*L18 -> 0 | O18: =M18-N18 -> 0 | P18: =O18/N18 ->  | Q18: =Tabelle1[[#This Row],[Investition]]+(Tabelle1[[#This Row],[Gew./Verl.]]*0.75) -> 0
Q25: =SUM(Q5:Q19) -> 19749.895
R155: DE000A27Z304 | T155: BTCetc - Bitcoin Exchange Traded Crypto
R156: IE00BGBN6P67 | T156: Invesco Elwood Global Blockchain UCITS ETF Acc

Sheet Renditen
A1: BASF | B1: =XIRR(B3:B14,A3:A14) -> 0.03201766908 | C1: Notiz | D1: SAP | E1: =XIRR(E3:E14,D3:D14) ->  | F1: Notiz | G1: CISCO | H1: =XIRR(H3:H14,G3:G14) ->  | J1: =XIRR(J3:J14,I3:I14) -> 
A2: Datum | B2: Wert | D2: Datum | E2: Wert | G2: Datum | H2: Wert | I2: Datum | J2: Wert
A3: 42005 | B3: =-5000 -> -5000 | C3: Kauf
A4: 42139 | B4: 200 | C4: Dividende
A5: 42262 | B5: 2500 | C5: Teilverkauf
A6: 42370 | B6: =-3000 -> -3000 | C6: Kauf
A7: 42505 | B7: 200 | C7: Dividende
A8: 42870 | B8: 200 | C8: Dividende
A9: 43235 | B9: 200 | C9: Dividende
A10: 43600 | B10: 200 | C10: Dividende
A11: 43966 | B11: 200 | C11: Dividende
A12: 44331 | B12: 200 | C12: Dividende
A13: 44696 | B13: 200 | C13: Dividende
A14: =TODAY() -> 44942 | B14: ='Aktien & Wertpapiere'!Q5 -> 5208.5 | C14: Wert heute
A18: Wichtig:
A19: Käufe x -1 nehmen (negativ eintragen)
A20: Letzter Eintrag muss aktuelles Datum plus aktuellen Wert enthalten
A21: Formel XINTZINSFUSS darf keine leeren Zeilen bzw. Zellen umfassen
